fUSD/lending_fUSD_20241220
["ID","MTS","AMOUNT","RATE_DAILY","PERIOD"]
[346083700,1734695445338,-46489.37689999,0.00021916,3]
[346083701,1734695445349,-1295.0341374,0.00021916,3]
[346083709,1734695445708,-284.59678026,0.00021916,3]
[346083712,1734695445723,-3358.36834591,0.00021916,3]
[346083714,1734695445734,-937.430252,0.00021916,3]
[346083717,1734695445745,-261.41531425,0.00021916,3]
[346083753,1734695446118,-276.37794197,0.00018308,2]
[346083755,1734695446128,-1376.30509214,0.00021916,3]
[346083757,1734695446139,-3347.31696589,0.00021916,3]
[346083761,1734695446166,-5993.7,0.00021916,3]
[346083763,1734695446177,-2718.14890765,0.00021916,3]
[346083766,1734695446195,-298.32,0.00021916,3]
[346083822,1734695446755,-2759.6999997,0.00021916,3]
[346083825,1734695446768,-41850.0,0.00021916,3]
[346083842,1734695446945,-3023.82224922,0.00021916,3]
[346083847,1734695446999,-164772.73508522,0.00021916,3]
[346083861,1734695447123,-39600.0,0.00021916,3]
[346083863,1734695447135,-2006.8056,0.00021916,3]
[346083865,1734695447147,-999.999975,0.00021916,3]
[346083867,1734695447158,-93319.52748673,0.00021916,3]
[346083871,1734695447185,-549.95775799,0.00021916,3]
[346083873,1734695447196,-393.66034999,0.00021916,3]
[346083876,1734695447211,-362.44959872,0.00021916,3]
[346083878,1734695447224,-410.0,0.00021916,3]
[346083880,1734695447237,-4600.0,0.00021916,3]
[346083884,1734695447269,-2070.46078,0.00021916,3]
[346083887,1734695447281,-4658.4530058,0.00021916,3]
[346085878,1734695581010,2159.62620367,0.00021917,120]
[346085886,1734695869708,331.69,0.00010137,2]
[346085890,1734695948418,1000.0,0.00021917,30]
[346085891,1734695948679,1000.0,0.00022191,30]
[346085892,1734695948929,1000.0,0.00022465,30]
[346085895,1734696097358,450.0,0.00013,2]
[346085896,1734696098446,500.0,0.00015,2]
[346085897,1734696158655,283.27,0.00019213,30]
[346085898,1734696158989,283.27,0.00021797,30]
[346085904,1734696480464,-162.88,0.0001639,2]
[346085905,1734696480485,-166.66666666,0.00016396,2]
[346085906,1734696480506,-1880.76722912,0.00016496,2]
[346085907,1734696480528,-3044.0,0.000165,2]
[346085908,1734696481606,165.35,0.00013699,2]
[346085909,1734696499728,-153.0,0.00016596,2]
[346085910,1734696499751,-153.0,0.00016596,2]
[346085911,1734696499773,-153.0,0.00016596,2]
[346085912,1734696499795,-153.0,0.00016596,2]
[346085913,1734696499817,-153.0,0.00016596,2]
[346085914,1734696499838,-153.0,0.00016596,2]
[346085915,1734696499860,-153.0,0.00016596,2]
[346085916,1734696499894,-186.62,0.00016712,2]
[346085917,1734696499919,-300.03,0.00016781,7]
[346085918,1734696499940,-331.69,0.00016813,2]
[346085919,1734696499961,-550.0,0.00017,2]
[346085920,1734696499983,-1399.14,0.0001733,2]
[346085921,1734696500005,-153.0,0.00017538,2]
[346085922,1734696500026,-153.0,0.00017538,2]
[346085923,1734696500181,-153.0,0.00017538,2]
[346085924,1734696500203,-153.0,0.00017538,2]
[346085925,1734696500224,-129.85610422,0.00017538,2]
[346085926,1734696515374,-23.14389578,0.00017538,2]
[346085927,1734696515405,-153.0,0.00017538,2]
[346085928,1734696515432,-153.0,0.00017538,2]
[346085929,1734696515455,-153.0,0.00017538,2]
[346085930,1734696515479,-153.0,0.00017538,2]
[346085931,1734696515502,-153.0,0.00017538,2]
[346085932,1734696515526,-153.0,0.00017538,2]
[346085933,1734696515552,-153.0,0.00017538,2]
[346085934,1734696515575,-153.0,0.00017538,2]
[346085935,1734696515599,-153.0,0.00017538,2]
[346085936,1734696515623,-8408.85792693,0.00018141,2]
[346085937,1734696522772,153.0,0.00016596,2]
[346085938,1734696522997,37.99817729,0.00016596,2]
[346085939,1734696544414,-115.00182271,0.00016596,2]
[346085940,1734696544453,-153.0,0.00016596,2]
[346085941,1734696544492,-153.0,0.00016596,2]
[346085942,1734696544529,-153.0,0.00016596,2]
[346085943,1734696544565,-155.1936162,0.00018203,2]
[346085944,1734696544602,-1678.83576232,0.00018303,2]
[346085945,1734696544643,-252.2,0.00018303,2]
[346085946,1734696544800,-928.79,0.00018352,2]
[346085947,1734696544874,-179.6,0.00018356,2]
[346085948,1734696544897,-250.0,0.00018358,2]
[346085949,1734696544927,-165.35,0.00018493,2]
[346085951,1734696552165,1000.0,0.00021917,30]
[346085952,1734696553757,375.98644703,0.00022191,30]
[346085953,1734696554050,-2751.0,0.00018702,2]
[346085954,1734696554071,-155.19361618,0.00018753,2]
[346085955,1734696554094,-300.0,0.00018832,2]
[346085956,1734696554115,-2609.83518259,0.00018833,2]
[346085957,1734696562885,-8809.37481741,0.00018833,2]
[346085958,1734696565115,253.32,0.00018833,2]
[346085959,1734696571260,-937.30518259,0.00018944,2]
[346085960,1734696577613,-8198.94481741,0.00018944,2]
[346085961,1734696580502,245.98,0.00018944,2]
[346085962,1734696586545,153.0,0.00016596,2]
[346085963,1734696587108,153.0,0.00016596,2]
[346085964,1734696587330,153.0,0.00016596,2]
[346085965,1734696587606,-600.0,0.00019,2]
[346085966,1734696587630,-613.0,0.00019178,2]
[346085967,1734696587653,-2206.18,0.00019193,2]
[346085968,1734696587676,-1274.397,0.00019202,2]
[346085969,1734696587698,-2010.0,0.00019202,2]
[346085970,1734696587725,-3296.423,0.00019202,2]
[346085971,1734696592330,153.0,0.00016596,2]
[346085972,1734696594807,-588.577,0.00019202,2]
[346085973,1734696594829,-150.0,0.00019202,2]
[346085974,1734696594850,-151.437,0.00019202,2]
[346085975,1734696594872,-566.731,0.00019202,2]
[346085976,1734696594895,-635.73,0.00019202,2]
[346085977,1734696594917,-823.0,0.00019202,2]
[346085978,1734696594939,-539.491,0.00019202,2]
[346085979,1734696594961,-1541.376,0.00019202,2]
[346085980,1734696594987,-1000.0,0.00019202,2]
[346085981,1734696595009,-1000.0,0.00019202,2]
[346085982,1734696595034,-248.06,0.00019202,2]
[346085983,1734696595073,248.48,0.00019,2]
[346085984,1734696602026,-155.19361618,0.00019302,2]
[346085985,1734696602051,-150.0,0.00019307,2]
[346085986,1734696602073,-289.65,0.0001932,2]
[346085987,1734696604703,150.0,0.00019202,2]
[346085988,1734696604930,150.0,0.00019202,2]
[346085989,1734696605128,48.23156641,0.00019202,2]
[346085990,1734696605150,101.76843359,0.00019202,2]
[346085991,1734696605298,150.0,0.00019202,2]
[346085992,1734696605644,150.0,0.00019202,2]
[346085993,1734696605826,150.0,0.00019202,2]
[346085994,1734696605912,150.0,0.00019202,2]
[346085995,1734696606151,150.0,0.00019202,2]
[346085996,1734696606466,296.80626426,0.00019202,2]
[346085997,1734696622886,-300.0,0.00019401,2]
[346085998,1734696622910,-252.73,0.00019401,2]
[346085999,1734696625840,247.85,0.00019401,2]
[346086000,1734696631561,-1399.14,0.00019594,2]
[346086001,1734696631587,-1000.0,0.00019722,2]
[346086002,1734696631609,-250.0,0.00019772,2]
[346086003,1734696631636,-150.0,0.0001979,2]
[346086004,1734696631661,-150.0,0.00019828,2]
[346086005,1734696631684,-210.15,0.00019833,2]
[346086006,1734696631706,-6040.13,0.00019834,2]
[346086052,1734696632116,-328.77054565,0.00019834,2]
[346086054,1734696632128,-678.9651681,0.00019834,2]
[346086064,1734696632229,-971.3465097,0.00019834,2]
[346086071,1734696632286,-5724.78777655,0.00019834,2]
[346086073,1734696632296,-150.0,0.00019834,2]
[346086075,1734696632306,-3885.0,0.00019834,2]
[346086077,1734696632315,-500.0,0.0002,2]
[346086079,1734696632325,-5601.68905262,0.0002,2]
[346086081,1734696632335,-23476.26689707,0.0002,2]
[346086082,1734696632344,-165.96,0.00020006,2]
[346086083,1734696632353,-500.0,0.00020068,2]
[346086084,1734696632362,-700.0,0.00020068,2]
[346086085,1734696632372,-516.48,0.00020168,2]
[346086087,1734696632381,-500.98,0.00020189,2]
[346086088,1734696632390,-23900.0,0.00020198,2]
[346086089,1734696632399,-150.0,0.00020346,2]
[346086090,1734696632408,-2026.62382149,0.00020424,2]
[346086091,1734696632417,-250.0,0.0002046,2]
[346086092,1734696632427,-53900.57741757,0.0002046,3]
[346086093,1734696632880,-285.0,0.0002046,3]
[346086094,1734696632891,-10313.57433364,0.0002046,3]
[346086095,1734696632902,-3939.84824879,0.0002046,3]
[346086096,1734696632911,-150.0,0.00020523,2]
[346086097,1734696632920,-25015.0,0.00020524,2]
[346086098,1734696632930,-150.0,0.00020525,2]
[346086099,1734696632939,-1000.0,0.00020599,2]
[346086100,1734696632948,-2500.0,0.00020599,2]
[346086101,1734696632957,-2026.62382145,0.00020699,2]
[346086102,1734696632966,-11173.5228,0.00020743,2]
[346086103,1734696632975,-150.0,0.00020792,2]
[346086104,1734696632984,-496.699,0.0002082,2]
[346086105,1734696632996,-250.0,0.00020879,2]
[346086106,1734696633006,-6057.60899564,0.00020897,2]
[346086107,1734696633016,-176.84,0.00020941,2]
[346086108,1734696633026,-21344.43,0.00020951,2]
[346086109,1734696633036,-2026.62382145,0.00020974,2]
[346086110,1734696633046,-650.0,0.00021,2]
[346086111,1734696633057,-176.84,0.00021058,2]
[346086112,1734696633067,-503.78,0.00021068,2]
[346086113,1734696633076,-503.47,0.00021068,2]
[346086114,1734696633086,-509.78,0.00021068,2]
[346086115,1734696633096,-495.88,0.00021068,2]
[346086116,1734696633106,-508.78,0.00021068,2]
[346086117,1734696633116,-509.06,0.00021068,2]
[346086118,1734696633125,-494.22,0.00021068,2]
[346086119,1734696633135,-504.99,0.00021068,2]
[346086120,1734696633144,-503.72,0.00021068,2]
[346086121,1734696633154,-492.79,0.00021068,2]
[346086122,1734696633164,-498.1,0.00021068,2]
[346086123,1734696633174,-499.77,0.00021068,2]
[346086124,1734696633183,-497.04,0.00021068,2]
[346086125,1734696633193,-493.58,0.00021068,2]
[346086126,1734696633203,-504.42,0.00021068,2]
[346086127,1734696633212,-175.41,0.00021108,2]
[346086128,1734696633222,-700.0,0.00021164,2]
[346086129,1734696633231,-2026.62382145,0.00021249,2]
[346086130,1734696633241,-150.0,0.00021297,2]
[346086131,1734696633251,-150.0,0.00021301,2]
[346086132,1734696633260,-2200.0,0.000214,2]
[346086133,1734696633269,-1000.0,0.00021472,2]
[346086134,1734696633279,-150.0,0.00021477,4]
[346086135,1734696633289,-150.0,0.00021477,4]
[346086136,1734696633299,-150.0,0.00021477,4]
[346086137,1734696633309,-150.0,0.00021477,4]
[346086138,1734696633318,-150.0,0.00021477,4]
[346086139,1734696633328,-150.0,0.00021477,4]
[346086140,1734696633338,-700.0,0.000215,7]
[346086141,1734696633347,-2026.62382145,0.00021524,2]
[346086142,1734696633357,-176.84,0.00021562,2]
[346086143,1734696633366,-2842.23681281,0.00021572,2]
[346086144,1734696633383,-868.6975,0.00021572,2]
[346086145,1734696633398,-340.000016,0.00021572,2]
[346086146,1734696634047,-1100.0,0.00019842,2]
[346086147,1734696634058,-2145.97,0.00021572,2]
[346086148,1734696634070,-1085.423385,0.00021572,2]
[346086245,1734696636517,267.76228939,0.00018,4]
[346086249,1734696637847,1003.58650367,0.000225,30]
[346086251,1734696637947,-327.7410864,0.00021572,2]
[346086252,1734696637959,-522.27499128,0.00021572,2]
[346086253,1734696637970,-519.11447485,0.00021572,2]
[346086254,1734696637982,-2742.09415761,0.00021572,2]
[346086255,1734696637993,-6562.20084239,0.00021591,2]
[346086256,1734696638031,-307.59466647,0.00021591,2]
[346086257,1734696638055,-1795.73637612,0.00021591,2]
[346086258,1734696638065,-1496.98676046,0.000216,7]
[346086259,1734696638111,-3.01323954,0.000216,7]
[346086260,1734696638121,-150.0,0.00021602,4]
[346086261,1734696638130,-2199.70466039,0.000217,7]
[346086262,1734696638166,-100.29533961,0.000217,7]
[346086263,1734696638176,-176.84,0.00021707,2]
[346086264,1734696638186,-651.74466039,0.00021716,2]
[346086265,1734696638282,-353.70133961,0.00021716,2]
[346086266,1734696638291,-158.67266169,0.00021716,2]
[346086267,1734696638301,-665.10234082,0.00021716,2]
[346086268,1734696638310,-1111.85141064,0.00021716,2]
[346086269,1734696638321,-1873.6346775,0.00021716,2]
[346086276,1734696641470,-1940.01251186,0.00021716,2]
[346086277,1734696641480,-3613.82820871,0.00021717,2]
[346086278,1734696641561,-1386.17179129,0.00021717,2]
[346086279,1734696641570,-150.0,0.00021728,4]
[346086280,1734696641584,-500.0,0.00021741,2]
[346086281,1734696641593,-500.0,0.00021753,2]
[346086282,1734696641603,-150.0,0.00021775,4]
[346086283,1734696641613,-176.84,0.0002179,2]
[346086284,1734696641623,-176.84,0.0002179,2]
[346086285,1734696641632,-176.84,0.0002179,2]
[346086286,1734696641641,-176.84,0.0002179,2]
[346086287,1734696641651,-176.84,0.0002179,2]
[346086288,1734696641661,-176.84,0.0002179,2]
[346086289,1734696641671,-746.94621482,0.000218,2]
[346086290,1734696641695,-903.7196,0.000218,2]
[346086291,1734696641707,-375.95800663,0.000218,2]
[346086292,1734696641716,-59.42237609,0.000218,7]
[346086293,1734696641748,-1661.69893032,0.000218,7]
[346086294,1734696641767,-266.18516855,0.000218,7]
[346086295,1734696641787,-338.56878069,0.000218,7]
[346086370,1734696643407,-496.43,0.0002146,2]
[346086371,1734696643417,-774.12474435,0.000218,7]
[346086372,1734696643427,-56032.47917833,0.000218,3]
[346086373,1734696643456,-13967.52082167,0.000218,3]
[346086375,1734696643466,-72738.0,0.000218,2]
[346086377,1734696643475,-157.59,0.00021807,2]
[346086379,1734696643484,-157.59,0.00021807,2]
[346086380,1734696643497,-500.0,0.00021816,2]
[346086382,1734696643507,-500.0,0.00021816,2]
[346086384,1734696643517,-184.30142934,0.00021816,2]
[346086386,1734696643526,-5186.3892,0.00021816,2]
[346086388,1734696643537,-306.38958494,0.00021816,2]
[346086391,1734696643556,-553.71131506,0.00021816,2]
[346086392,1734696643565,-1671.89787894,0.00021816,2]
[346086396,1734696643625,-2278.43904919,0.00021816,2]
[346086398,1734696643636,-751.75550445,0.00021816,2]
[346086401,1734696643655,-127.02136742,0.00021816,2]
[346086403,1734696643667,-427.32699884,0.00021817,2]
[346086406,1734696643688,-605.4230013,0.00021817,2]
[346086618,1734696646115,-297.0489873,0.00021817,2]
[346086621,1734696646127,-252.31121264,0.00021817,2]
[346086632,1734696646177,-284.5969998,0.00021817,2]
[346086634,1734696646190,-9271.96503411,0.00021817,2]
[346086636,1734696646203,-5019.31696589,0.00021817,2]
[346086645,1734696646285,-4717.77980012,0.00021817,2]
[346086647,1734696646295,-6690.05432974,0.00021817,2]
[346086650,1734696646307,-3521.15435683,0.00021817,2]
[346086653,1734696646331,-702.72908207,0.00021817,2]
[346086656,1734696646347,-10194.05,0.00021817,2]
[346086666,1734696646440,-1293.62996354,0.00021817,2]
[346086678,1734696646546,-108800.51411792,0.00021817,2]
[346087700,1734696705851,186.62,0.00016712,2]
[346087709,1734696717819,162.88,0.0001672,2]
[346087723,1734696743650,7548.0,0.000235,120]
[346087740,1734696818593,154.86,0.00010137,2]
[346087741,1734696818793,154.86,0.00018065,2]
[346087742,1734696818977,1000.0,0.000225,30]
[346087744,1734696830430,1000.0,0.000225,30]
[346087745,1734696857588,1000.0,0.000225,30]
[346087746,1734696865713,1000.0,0.000225,30]
[346087748,1734696883272,275.49946232,0.000225,30]
[346087749,1734696890614,1000.0,0.000225,30]
[346087750,1734696932634,431.56101276,0.000156,2]
[346087752,1734697032568,368.85,0.00020311,30]
[346087753,1734697194639,1000.0,0.00021917,30]
[346087754,1734697194902,1000.0,0.00022191,30]
[346087755,1734697195163,1000.0,0.00022465,30]
[346087760,1734697344216,-6801.91270027,0.00022,14]
[346087761,1734697364891,-151.64,0.00022739,30]
[346087762,1734697364930,-368.85,0.00022895,30]
[346087763,1734697364953,-4069.47107133,0.00023,14]
[346087764,1734697374401,-150.0,0.00023171,30]
[346087765,1734697374423,-684.34467116,0.00023171,30]
[346087766,1734697374445,-151.65319426,0.00023237,30]
[346087767,1734697374467,-176.25018165,0.00023237,30]
[346087768,1734697374497,-150.81389781,0.00023237,30]
[346087769,1734697374519,-151.17951736,0.00023237,30]
[346087770,1734697374568,-7669.97122533,0.000235,15]
[346087771,1734697374589,-500.0,0.000235,30]
[346087772,1734697374610,-349.33700799,0.000235,30]
[346087773,1734697374656,-244.56353,0.0002375,30]
[346087774,1734697374678,-189.5,0.000238,120]
[346087775,1734697374721,-150.0,0.0002385,120]
[346087776,1734697374749,-301.24129366,0.00024,15]
[346087777,1734697374770,-2000.0,0.00024,20]
[346087778,1734697374791,-1881.30546905,0.00024,30]
[346087779,1734697374812,-5036.78064,0.00024,30]
[346087780,1734697383179,-150.0,0.00024037,120]
[346087781,1734697383237,-150.0,0.0002417,120]
[346087782,1734697383265,-255.66,0.0002422,15]
[346087783,1734697383292,-10032.00477065,0.000243,14]
[346087784,1734697383321,-150.0,0.00024373,120]
[346087785,1734697383379,-301.4,0.000244,120]
[346087786,1734697383408,-475.11,0.000245,120]
[346087787,1734697383438,-1106.57467389,0.000245,60]
[346087788,1734697383469,-150.0,0.00024645,120]
[346087789,1734697383503,-5000.0,0.00024657,14]
[346087790,1734697383531,-5000.0,0.00024657,14]
[346087791,1734697383559,-5000.0,0.00024657,14]
[346087792,1734697383585,-5000.0,0.00024657,14]
[346087793,1734697383613,-5000.0,0.00024657,14]
[346087794,1734697383639,-3025.59693338,0.00024657,14]
[346087795,1734697383977,-1000.0,0.00024658,30]
[346087796,1734697384007,-1000.0,0.00024658,30]
[346087797,1734697384031,-1000.0,0.00024658,30]
[346087798,1734697384054,-1000.0,0.00024658,30]
[346087799,1734697384077,-1000.0,0.00024658,30]
[346087800,1734697384099,-1000.0,0.00024658,30]
[346087801,1734697384121,-1000.0,0.00024658,30]
[346087802,1734697384143,-1420.43380211,0.00024658,30]
[346087803,1734697384166,-192.0,0.0002467,120]
[346087804,1734697384189,-150.0,0.00024671,120]
[346087805,1734697384212,-150.5,0.0002468,120]
[346087806,1734697384238,-150.5,0.0002469,120]
[346087807,1734697384262,-150.0,0.00024766,120]
[346087808,1734697384289,-750.0,0.000248,120]
[346087809,1734697384313,-250.0,0.000249,14]
[346087810,1734697384346,-785.62,0.000249,31]
[346087811,1734697384372,-785.62,0.000249,31]
[346087812,1734697384398,-785.62,0.000249,31]
[346087813,1734697384424,-785.62,0.000249,31]
[346087814,1734697384449,-785.62,0.000249,31]
[346087815,1734697384475,-785.62,0.000249,31]
[346087816,1734697384505,-785.62,0.000249,31]
[346087817,1734697384530,-785.62,0.000249,31]
[346087818,1734697384556,-785.62,0.000249,31]
[346087819,1734697384582,-785.62,0.000249,31]
[346087820,1734697384607,-785.62,0.000249,31]
[346087821,1734697384637,-785.62,0.000249,31]
[346087822,1734697384662,-785.62,0.000249,31]
[346087823,1734697384687,-785.62,0.000249,31]
[346087824,1734697384712,-142.7254201,0.000249,31]
[346087825,1734697507696,6707.58,0.00013,2]
[346087826,1734697507722,4509.81,0.00013,2]
[346087827,1734697507771,10000.0,0.00013,2]
[346087828,1734697507801,10000.0,0.00013,2]
[346087829,1734697507844,10000.0,0.00013,2]
[346087830,1734697507905,2999839.73,0.00013,2]
[346087831,1734697507947,10000.0,0.00013,2]
[346087832,1734697508227,10000.0,0.00013,2]
[346087833,1734697508291,10000.0,0.00013,2]
[346087834,1734697508324,10000.0,0.00013,2]
[346087835,1734697508387,10000.0,0.00013,2]
[346087836,1734697508433,10000.0,0.00013,2]
[346087837,1734697508499,10000.0,0.00013,2]
[346087838,1734697508552,10000.0,0.00013,2]
[346087839,1734697508580,10000.0,0.00013,2]
[346087840,1734697508606,10000.0,0.00013,2]
[346087841,1734697508635,10000.0,0.00013,2]
[346087842,1734697508660,10000.0,0.00013,2]
[346087843,1734697508684,10000.0,0.00013,2]
[346087844,1734697508709,10000.0,0.00013,2]
[346087845,1734697508733,10000.0,0.00013,2]
[346087846,1734697508758,10000.0,0.00013,2]
[346087847,1734697508785,10000.0,0.00013,2]
[346087848,1734697508809,10000.0,0.00013,2]
[346087849,1734697508836,10000.0,0.00013,2]
[346087850,1734697508861,10000.0,0.00013,2]
[346087851,1734697508890,10000.0,0.00013,2]
[346087852,1734697508914,10000.0,0.00013,2]
[346087853,1734697508937,10000.0,0.00013,2]
[346087854,1734697508960,10000.0,0.00013,2]
[346087855,1734697508985,10000.0,0.00013,2]
[346087856,1734697509009,10000.0,0.00013,2]
[346087857,1734697509031,10000.0,0.00013,2]
[346087858,1734697509056,10000.0,0.00013,2]
[346087859,1734697509089,10000.0,0.00013,2]
[346087860,1734697509118,10000.0,0.00013,2]
[346087861,1734697509143,10000.0,0.00013,2]
[346087862,1734697509169,10000.0,0.00013,2]
[346087863,1734697509198,10000.0,0.00013,2]
[346087864,1734697509222,10000.0,0.00013,2]
[346087865,1734697509252,10000.0,0.00013,2]
[346087866,1734697509276,10000.0,0.00013,2]
[346087867,1734697509302,10000.0,0.00013,2]
[346087868,1734697509329,10000.0,0.00013,2]
[346087869,1734697509353,10000.0,0.00013,2]
[346087870,1734697509377,10000.0,0.00013,2]
[346087871,1734697509403,10000.0,0.00013,2]
[346087872,1734697509427,10000.0,0.00013,2]
[346087873,1734697509452,10000.0,0.00013,2]
[346087874,1734697509478,10000.0,0.00013,2]
[346087875,1734697509504,10000.0,0.00013,2]
[346087876,1734697509529,10000.0,0.00013,2]
[346087877,1734697509554,10000.0,0.00013,2]
[346087878,1734697509579,10000.0,0.00013,2]
[346087879,1734697509607,10000.0,0.00013,2]
[346087880,1734697509631,10000.0,0.00013,2]
[346087881,1734697509656,10000.0,0.00013,2]
[346087882,1734697509681,10000.0,0.00013,2]
[346087883,1734697509707,10000.0,0.00013,2]
[346087884,1734697509731,10000.0,0.00013,2]
[346087885,1734697509755,10000.0,0.00013,2]
[346087886,1734697509779,10000.0,0.00013,2]
[346087887,1734697509805,10000.0,0.00013,2]
[346087888,1734697509831,10000.0,0.00013,2]
[346087889,1734697509855,10000.0,0.00013,2]
[346087890,1734697509896,10000.0,0.00013,2]
[346087891,1734697509923,10000.0,0.00013,2]
[346087892,1734697509947,10000.0,0.00013,2]
[346087893,1734697509974,10000.0,0.00013,2]
[346087894,1734697509998,10000.0,0.00013,2]
[346087895,1734697510023,10000.0,0.00013,2]
[346087896,1734697510047,10000.0,0.00013,2]
[346087897,1734697510075,20877808.1691854,0.00013,2]
[346087900,1734697556261,17484.60808098,6.94e-05,2]
[346087901,1734697562066,915.0,0.00011996,2]
[346087909,1734697701010,153.73,0.00010137,2]
[346087910,1734697706777,373.87378465,7.888e-05,2]
[346087911,1734697713133,213.67622106,0.0001,2]
[346087915,1734697719285,256.01731034,0.000107,2]
[346087935,1734697802241,712.83,0.00012959,14]
[346087968,1734697832224,-293.52793668,0.000125,2]
[346087970,1734697832233,-600.0,0.000126,4]
[346087972,1734697832243,-1300.0,0.000127,4]
[346087975,1734697832253,-199.14413373,0.000127,2]
[346087978,1734697832263,-2000.0,0.000128,4]
[346087981,1734697832272,-2600.0,0.000129,4]
[346087984,1734697832281,-182.30409544,0.000129,2]
[346087986,1734697832290,-1010.91977896,0.000129,2]
[346088033,1734697832869,-2.97063761,0.000129,2]
[346088034,1734697832881,-7581.84934697,0.000129,2]
[346088035,1734697832896,-1424.5000036,0.000129,2]
[346088036,1734697832907,-521.55738094,0.000129,2]
[346088037,1734697832919,-6810.72338418,0.000129,2]
[346088038,1734697832928,-974.07359324,0.000129,2]
[346088039,1734697832937,-201.02526612,0.000129,2]
[346088040,1734697832947,-500.32016645,0.00012973,2]
[346088041,1734697832956,-500.0,0.00012973,2]
[346088042,1734697832966,-500.0,0.00012973,2]
[346088043,1734697832976,-500.0,0.00012973,2]
[346088044,1734697832985,-206.42623714,0.00012973,2]
[346088045,1734697832997,-246.5904332,0.00012999,2]
[346088046,1734697833006,-500.0,0.00012999,2]
[346088047,1734697833016,-500.0,0.00012999,2]
[346088048,1734697833027,-500.0,0.00012999,2]
[346088049,1734697833038,-560.01015953,0.00012999,2]
[346088050,1734697833048,-500.0,0.00012999,2]
[346088051,1734697833060,-500.0,0.00012999,2]
[346088052,1734697833071,-250.0,0.00012999,2]
[346088053,1734697833080,-500.0,0.00012999,2]
[346088054,1734697833091,-500.22686198,0.00012999,2]
[346088055,1734697833100,-500.0,0.00012999,2]
[346088056,1734697833110,-500.0,0.00012999,2]
[346088057,1734697833120,-501.22395548,0.00012999,2]
[346088058,1734697833130,-500.0,0.00012999,2]
[346088059,1734697833139,-500.0,0.00012999,2]
[346088060,1734697833149,-500.0,0.00012999,2]
[346088061,1734697833159,-500.0,0.00012999,2]
[346088062,1734697833169,-500.0,0.00012999,2]
[346088063,1734697833178,-264.8580664,0.00012999,2]
[346088064,1734697833191,-235.1419336,0.00012999,2]
[346088065,1734697833201,-191.13382399,0.00012999,2]
[346088066,1734697833230,-115.64313207,0.00012999,2]
[346088067,1734697833240,-500.0,0.00012999,2]
[346088068,1734697833249,-500.0,0.00012999,2]
[346088069,1734697833259,-500.0,0.00012999,2]
[346088070,1734697833269,-500.0,0.00012999,2]
[346088071,1734697833279,-500.0,0.00012999,2]
[346088072,1734697833288,-500.0,0.00012999,2]
[346088073,1734697833298,-500.0,0.00012999,2]
[346088074,1734697833312,-500.0,0.00012999,2]
[346088075,1734697833322,-254.63635664,0.00012999,2]
[346088076,1734697833332,-500.0,0.00012999,2]
[346088077,1734697833341,-295.13100143,0.00012999,2]
[346088078,1734697833351,-500.0,0.00012999,2]